bitfinex-derivatives/quotes_BTCF0:USTF0_20240902
["timestamp","ask_amount","ask_price","bid_price","bid_amount"]
[1725315979053,0.0039617,59244.0,59239.0,0.0992]
[1725315979054,0.0039617,59244.0,59243.0,0.067521]
[1725315979366,0.08752,59244.0,59243.0,0.068321]
[1725315980565,0.08752,59244.0,59243.0,0.069321]
[1725315982862,0.08752,59244.0,59243.0,0.070321]
[1725315985374,0.08752,59244.0,59243.0,0.0028]
[1725315987778,0.06752,59244.0,59243.0,0.0028]
[1725315988282,0.17752,59244.0,59243.0,0.0028]
[1725315996479,0.75144,59244.0,59243.0,0.0028]
[1725315996680,0.135062,59235.0,59234.0,0.0039]
[1725315996881,0.5608,59235.0,59227.0,0.3276]
[1725315997178,0.5608,59235.0,59218.0,0.6307]
[1725315997179,0.067542,59225.0,59224.0,0.0039]
[1725315997483,0.067546,59221.0,59218.0,0.16095]
[1725315997784,0.09,59220.0,59218.0,0.16095]
[1725315997976,0.09,59220.0,59219.0,0.3608]
[1725315999172,0.089,59220.0,59219.0,0.3658]
[1725315999876,0.089,59220.0,59219.0,0.3708]
[1725316000185,0.067546,59221.0,59219.0,0.3708]
[1725316000883,0.067548,59220.0,59219.0,0.3708]
[1725316001086,0.283848,59220.0,59219.0,0.01]
[1725316002384,0.283848,59220.0,59219.0,0.005]
[1725316002584,0.283848,59220.0,59219.0,0.01]
[1725316002985,0.283848,59220.0,59219.0,0.005]
[1725316003279,0.283848,59220.0,59219.0,0.01]
[1725316003280,0.187548,59220.0,59219.0,0.01]
[1725316003887,0.347548,59220.0,59219.0,0.01]
[1725316018482,0.00025328,59225.0,59224.0,0.067543]
[1725316018687,0.00025328,59225.0,59224.0,1.188343]
[1725316018888,0.00025328,59225.0,59224.0,1.695303]
[1725316020999,0.00025328,59225.0,59224.0,1.74969894]
[1725316021392,0.0039,59234.0,59233.0,0.067533]
[1725316021590,0.16,59241.0,59233.0,0.3612]
[1725316021793,0.17,59241.0,59233.0,0.3612]
[1725316022385,0.17,59241.0,59238.0,0.067526]
[1725316022590,0.16,59239.0,59238.0,0.067526]
[1725316024693,0.16,59239.0,59238.0,0.068526]
[1725316025490,0.16,59239.0,59238.0,0.069526]
[1725316028797,0.22,59239.0,59238.0,0.069526]
[1725316030490,0.22,59239.0,59238.0,0.068526]
[1725316030690,0.22,59239.0,59238.0,0.069526]
[1725316032789,0.22,59239.0,59238.0,0.068526]
[1725316032992,0.287526,59239.0,59238.0,0.069526]
[1725316033995,0.217526,59239.0,59238.0,0.069526]
[1725316034195,0.217526,59239.0,59238.0,0.002]
[1725316034906,0.217526,59239.0,59238.0,0.001]
[1725316035197,0.217526,59239.0,59238.0,0.002]
[1725316043721,0.217526,59239.0,59238.0,0.069527]
[1725316043921,0.0016,59242.0,59241.0,0.067524]
[1725316044131,0.1016,59242.0,59241.0,0.067524]
[1725316044426,0.1016,59242.0,59241.0,0.067924]
[1725316045420,0.1016,59242.0,59241.0,0.068924]
[1725316045620,0.1016,59242.0,59241.0,0.069924]
[1725316046430,0.1016,59242.0,59241.0,0.666324]
[1725316046431,0.0116,59242.0,59241.0,0.666324]
[1725316047228,0.0116,59242.0,59241.0,0.159924]
[1725316048127,0.0116,59242.0,59241.0,0.666324]
[1725316048831,0.0116,59242.0,59241.0,0.069924]
[1725316049329,0.0916,59242.0,59241.0,0.069924]
[1725316049526,0.0016,59242.0,59241.0,0.069924]
[1725316050622,0.0016,59242.0,59241.0,0.159924]
[1725316053436,0.0016,59242.0,59241.0,1.694648]
[1725316053729,0.0016,59242.0,59241.0,1.094648]
[1725316054335,0.0016,59242.0,59241.0,0.520724]
[1725316055436,0.0016,59242.0,59241.0,1.627124]
[1725316056841,0.0016,59242.0,59241.0,0.520724]
[1725316057027,0.0016,59242.0,59241.0,1.627124]
[1725316057226,0.0016,59242.0,59241.0,0.520724]
[1725316060844,0.0016,59242.0,59241.0,0.430724]
[1725316066733,0.136646,59242.0,59241.0,0.3632]
[1725316066934,1.888169,59242.0,59241.0,1e-06]
[1725316067135,0.586723,59242.0,59241.0,1e-06]
[1725316067349,0.476723,59242.0,59241.0,1e-06]
[1725316068044,0.475123,59242.0,59241.0,1e-06]
[1725316068239,0.565123,59242.0,59241.0,1e-06]
[1725316068542,0.567123,59242.0,59241.0,1e-06]
[1725316069534,0.568123,59242.0,59241.0,1e-06]
[1725316069742,0.067525,59240.0,59237.0,0.067528]
[1725316070347,0.066525,59240.0,59237.0,0.067528]
[1725316070540,0.065525,59240.0,59237.0,0.067528]
[1725316070743,0.089,59239.0,59237.0,0.067528]
[1725316071939,0.067528,59237.0,59233.0,0.0039]
[1725316072137,0.067534,59232.0,59231.0,0.00025328]
[1725316072942,0.135068,59232.0,59231.0,0.00025328]
[1725316073546,0.135068,59232.0,59231.0,0.00125328]
[1725316074544,0.137068,59232.0,59231.0,0.00025328]
[1725316075053,0.167068,59232.0,59231.0,0.00025328]
[1725316075547,0.17111875,59232.0,59231.0,0.00025328]
[1725316079444,0.53191875,59232.0,59231.0,0.00025328]
[1725316080050,0.17111875,59232.0,59231.0,0.00025328]
[1725316080249,1.27759875,59232.0,59231.0,0.00025328]
[1725316081957,0.83865275,59232.0,59231.0,0.00025328]
[1725316082951,1.24006475,59232.0,59227.0,0.0039]
[1725316083153,0.4508,59228.0,59222.0,0.3647]
[1725316083349,0.157544,59223.0,59222.0,0.3608]
[1725316083652,0.28582285,59223.0,59222.0,0.3608]
[1725316084348,0.19582285,59223.0,59222.0,0.3608]
[1725316084555,0.28582285,59223.0,59222.0,0.3608]
[1725316084942,0.059549,59220.0,59218.0,0.0039]
[1725316085142,0.09,59219.0,59217.0,0.36105328]
[1725316085359,0.09,59219.0,59217.0,0.36494636]
[1725316085559,0.09,59219.0,59217.0,0.43249736]
[1725316086058,0.081,59219.0,59217.0,0.43249736]
[1725316086463,0.082,59219.0,59217.0,0.44649736]
[1725316087153,0.082,59219.0,59218.0,0.012]
[1725316087348,0.082,59219.0,59218.0,0.07955]
[1725316087848,0.083,59219.0,59218.0,0.06755]
[1725316088648,0.083,59219.0,59218.0,0.07955]
[1725316088854,0.001,59219.0,59218.0,0.07955]
[1725316089062,0.0024,59219.0,59218.0,0.08855]
[1725316093362,0.0424,59219.0,59218.0,0.08855]
[1725316098657,0.1324,59219.0,59218.0,0.08855]
[1725316100366,0.199949,59219.0,59218.0,0.08855]
[1725316106872,0.109949,59219.0,59218.0,0.08855]
[1725316113778,0.0424,59219.0,59218.0,0.08855]
[1725316122479,0.00025328,59225.0,59218.0,0.8884]
[1725316122671,0.00025328,59225.0,59224.0,0.518743]
[1725316123275,0.00025328,59225.0,59224.0,0.56914857]
[1725316123582,0.00025328,59225.0,59224.0,0.518743]
[1725316123984,0.00025328,59225.0,59224.0,0.428743]
[1725316124277,0.00025328,59225.0,59224.0,0.518743]
[1725316124874,0.00125328,59225.0,59224.0,0.518743]
[1725316125788,0.00125328,59225.0,59224.0,0.524743]
[1725316126185,0.00125328,59225.0,59224.0,0.53572661]
[1725316126488,0.00125328,59225.0,59224.0,1.17695478]
[1725316126785,0.00125328,59225.0,59224.0,0.60285178]
[1725316126990,0.00125328,59225.0,59224.0,0.53572661]
[1725316129985,0.00125328,59225.0,59224.0,0.44572661]
[1725316130181,0.09125328,59225.0,59224.0,0.44572661]
[1725316141500,0.09125328,59225.0,59224.0,0.44803888]
[1725316141701,0.15879528,59225.0,59224.0,0.44803888]
[1725316143800,0.16708347,59225.0,59224.0,0.01571227]
[1725316144096,0.24708347,59225.0,59224.0,0.01571227]
[1725316145402,0.25094573,59225.0,59224.0,0.01571227]
[1725316147000,0.61174573,59225.0,59224.0,0.01571227]
[1725316148602,0.61174573,59225.0,59224.0,0.53405527]
[1725316148603,0.00125328,59225.0,59224.0,0.53405527]
[1725316149394,0.00125328,59225.0,59224.0,0.5844584]
[1725316149599,0.00125328,59225.0,59224.0,0.44405527]
[1725316150808,0.00125328,59225.0,59224.0,0.4944584]
[1725316152605,0.09125328,59225.0,59224.0,0.49450874]
[1725316153005,0.09125328,59225.0,59224.0,0.44405527]
[1725316153811,0.00125328,59225.0,59224.0,0.53405527]
[1725316158507,0.00125328,59225.0,59224.0,0.60159827]
[1725316158705,0.0039,59234.0,59233.0,0.067533]
[1725316158917,0.046,59238.0,59237.0,0.067528]
[1725316159215,0.156,59238.0,59237.0,0.067928]
[1725316159414,0.156,59238.0,59237.0,0.067528]
[1725316159607,0.156,59238.0,59237.0,0.06984027]
[1725316160309,0.002,59242.0,59241.0,0.067524]
[1725316160509,0.002,59242.0,59241.0,0.067924]
[1725316160716,0.002,59242.0,59241.0,0.07023627]
[1725316160915,0.002,59242.0,59241.0,0.16923627]
[1725316162123,0.015,59242.0,59241.0,0.17023627]
[1725316162711,0.026,59242.0,59241.0,0.17123627]
[1725316163016,0.025,59242.0,59241.0,0.17123627]
[1725316163410,0.014,59242.0,59241.0,0.17023627]
[1725316163606,0.02490483,59242.0,59241.0,1.34516027]
[1725316164215,0.02490483,59242.0,59241.0,1.34912039]
[1725316164917,0.02490483,59242.0,59241.0,0.68159639]
[1725316165316,0.02490483,59242.0,59241.0,0.17519639]
[1725316165621,0.02490483,59242.0,59241.0,1.28159639]
[1725316165822,0.01390483,59242.0,59241.0,1.28059639]
[1725316166114,0.01790483,59242.0,59241.0,1.28059639]
[1725316166313,0.00990483,59242.0,59241.0,1.27959639]
[1725316168520,0.00990483,59242.0,59241.0,1.36959639]
[1725316171322,0.00990483,59242.0,59241.0,0.26319639]
[1725316173934,0.00990483,59242.0,59241.0,1.43712039]
[1725316173935,8.3e-07,59242.0,59241.0,1.43712039]
[1725316176130,8.3e-07,59242.0,59241.0,1.48728748]
[1725316176629,8.3e-07,59242.0,59241.0,1.43712039]
[1725316179321,8.3e-07,59242.0,59241.0,1.48730256]
[1725316180223,8.3e-07,59242.0,59241.0,1.55482656]
[1725316180431,0.0039,59251.0,59250.0,0.067513]
[1725316180626,0.0498,59258.0,59250.0,0.81391227]
[1725316180833,0.0498,59258.0,59257.0,0.3608]
[1725316181336,0.0498,59258.0,59257.0,0.519105]
[1725316181829,0.0498,59258.0,59257.0,0.52141727]
[1725316182426,0.0568,59258.0,59257.0,0.52241727]
[1725316183231,0.0628,59258.0,59257.0,0.52341727]
[1725316184433,0.0628,59258.0,59257.0,0.52735153]
[1725316185330,0.130304,59258.0,59257.0,0.36984653]
[1725316185531,0.220304,59258.0,59257.0,0.00511227]
[1725316185732,0.270304,59258.0,59257.0,0.00511227]
[1725316186945,0.0628,59258.0,59257.0,0.16261727]
[1725316193333,0.0628,59258.0,59257.0,0.07261727]
[1725316194141,0.130304,59258.0,59257.0,0.07261727]
[1725316194848,0.220304,59258.0,59257.0,0.07261727]
[1725316195049,0.220304,59258.0,59257.0,0.00511227]
[1725316195746,0.214304,59258.0,59257.0,0.00411227]
[1725316195944,0.213304,59258.0,59257.0,0.00411227]
[1725316196147,0.220304,59258.0,59257.0,0.00511227]
[1725316197641,0.287808,59258.0,59257.0,0.00511227]
[1725316198334,0.287808,59258.0,59257.0,0.00411227]
[1725316198544,0.287808,59258.0,59257.0,0.00511227]
[1725316198737,0.285808,59258.0,59257.0,0.00511227]
[1725316199139,0.285808,59258.0,59257.0,0.00411227]
[1725316199140,0.279808,59258.0,59257.0,0.00411227]
[1725316199342,0.285808,59258.0,59257.0,0.00511227]
[1725316200342,1.492088,59258.0,59257.0,0.00511227]
[1725316201140,1.486088,59258.0,59257.0,0.00511227]
[1725316201347,0.135024,59251.0,59250.0,0.0039]
[1725316201648,0.135024,59251.0,59245.0,0.00025328]
[1725316201649,0.135036,59246.0,59245.0,0.00025328]
[1725316201854,0.225036,59246.0,59245.0,0.00025328]
[1725316202056,0.156518,59246.0,59245.0,0.00025328]
[1725316202255,0.155518,59246.0,59245.0,0.00025328]
[1725316202950,0.161518,59246.0,59245.0,0.00125328]
[1725316204743,0.161518,59246.0,59245.0,0.00225328]
[1725316204744,0.168518,59246.0,59245.0,0.00225328]
[1725316205151,0.078518,59246.0,59245.0,0.00225328]
[1725316208260,0.078518,59246.0,59239.0,0.0501848]
[1725316208447,0.078518,59246.0,59201.0,0.74972581]
[1725316208448,0.13817808,59198.0,59171.0,0.16831284]
[1725316208648,0.13817808,59198.0,59173.0,0.3438]
[1725316208649,0.3608,59193.0,59173.0,0.3438]
[1725316208845,0.3608,59200.0,59188.0,0.09]
[1725316209047,0.11791038,59191.0,59182.0,0.3608]
[1725316209244,0.13475472,59199.0,59190.0,0.3608]
[1725316209245,0.11791038,59194.0,59190.0,0.3608]
[1725316209452,0.00025328,59192.0,59187.0,0.09]
[1725316209659,0.09975217,59188.0,59187.0,0.09]
[1725316209857,0.02738972,59188.0,59187.0,0.09]
[1725316210051,0.02738972,59188.0,59183.0,0.1436]
[1725316210250,0.10075457,59186.0,59183.0,0.1436]
[1725316210454,0.02738972,59188.0,59183.0,0.1436]
[1725316210649,0.02738972,59188.0,59187.0,0.3616]
[1725316211463,0.08369115,59189.0,59187.0,0.3616]
[1725316211654,0.07869115,59188.0,59187.0,0.3616]
[1725316211853,0.07869115,59188.0,59187.0,0.3608]
[1725316212349,0.07869115,59188.0,59186.0,0.16]
[1725316212548,0.001,59188.0,59187.0,0.003]
[1725316213856,0.001,59188.0,59187.0,0.3638]
[1725316214452,0.001,59188.0,59186.0,0.16]
[1725316214854,0.001,59188.0,59186.0,0.16390793]
[1725316215068,0.00025328,59192.0,59187.0,0.3608]
[1725316215253,0.02738937,59191.0,59187.0,0.3608]
[1725316215850,0.067584,59188.0,59187.0,0.3608]
[1725316216050,0.18739084,59188.0,59183.0,0.1436]
[1725316216254,0.02739172,59187.0,59183.0,0.1436]
[1725316216558,0.06759,59183.0,59150.0,0.3608]
[1725316216759,0.21003215,59156.0,59151.0,0.0465]
[1725316216967,0.16,59152.0,59151.0,0.0465]
[1725316217151,0.06670953,59154.0,59151.0,0.0465]
[1725316217365,0.16,59154.0,59153.0,0.0008]
[1725316217758,0.06661539,59155.0,59153.0,0.0008]
[1725316218063,0.06661539,59155.0,59154.0,0.0008]
[1725316218364,0.36176,59158.0,59154.0,0.0008]
[1725316218365,0.06661539,59158.0,59154.0,0.0008]
[1725316218557,0.19,59155.0,59154.0,0.0008]
[1725316219067,0.23990359,59155.0,59151.0,0.0465]
[1725316219364,0.067625,59153.0,59151.0,0.0465]
[1725316219964,0.04990326,59157.0,59151.0,0.0465]
[1725316220266,0.41070326,59158.0,59156.0,0.0008]
[1725316220457,0.3608,59158.0,59157.0,0.0008]
[1725316224159,0.3612,59158.0,59157.0,0.0008]
[1725316225068,0.428818,59158.0,59157.0,0.0008]
[1725316226566,0.616436,59158.0,59157.0,0.0008]
[1725316227166,0.067629,59149.0,59148.0,0.05005352]
[1725316227386,0.068029,59149.0,59148.0,0.05005352]
[1725316230862,0.00096,59152.0,59148.0,1.51805352]
[1725316231169,0.00025352,59159.0,59156.0,0.06762]
[1725316231366,0.06787052,59159.0,59158.0,0.0004]
[1725316231774,0.06787052,59159.0,59157.0,0.0464]
[1725316231775,0.06787052,59159.0,59157.0,0.04212001]
[1725316231968,0.068018,59158.0,59157.0,0.04212001]
[1725316232160,0.067618,59158.0,59157.0,0.04212001]
[1725316232472,0.06762,59157.0,59154.0,0.067623]
[1725316232766,0.0004,59155.0,59154.0,0.067623]
[1725316235066,0.0004,59155.0,59154.0,0.114423]
[1725316238375,0.0004,59155.0,59154.0,0.11836421]
[1725316239467,0.00025352,59159.0,59158.0,0.135236]
[1725316239667,0.00025352,59159.0,59158.0,0.686036]
[1725316239874,0.00025352,59159.0,59158.0,0.686436]
[1725316240369,0.00025352,59159.0,59158.0,0.0004]
[1725316240968,0.06741544,59159.0,59158.0,0.068018]
[1725316241162,0.00025352,59159.0,59158.0,0.068018]
[1725316243776,0.08425273,59159.0,59158.0,0.068018]
[1725316244074,0.06031004,59159.0,59158.0,0.068018]
[1725316245578,0.10170289,59159.0,59158.0,0.068018]
[1725316246276,0.10170289,59159.0,59158.0,0.0004]
[1725316246277,0.16931989,59159.0,59158.0,0.0004]
[1725316246780,0.16932013,59159.0,59158.0,0.0004]
[1725316247568,0.06787052,59159.0,59158.0,0.0004]
[1725316247772,0.09527655,59159.0,59158.0,0.0004]
[1725316248075,0.16932093,59159.0,59158.0,0.0004]
[1725316248473,0.22120308,59159.0,59158.0,0.0004]
[1725316249677,0.37280214,59159.0,59158.0,0.0004]
[1725316249974,0.53319597,59159.0,59158.0,0.0004]
[1725316250165,0.38120308,59159.0,59158.0,0.0004]
[1725316250568,0.48120308,59159.0,59158.0,0.0004]
[1725316251182,0.38792776,59159.0,59158.0,0.0004]
[1725316251480,0.50614418,59159.0,59158.0,0.0004]
[1725316252273,0.38792776,59159.0,59158.0,0.0004]
[1725316252674,0.38792834,59159.0,59158.0,0.0004]
[1725316253787,0.34614476,59159.0,59158.0,0.0004]
[1725316255676,0.22792834,59159.0,59158.0,0.0004]
[1725316256582,0.26932183,59159.0,59158.0,0.0004]
[1725316259085,0.32120608,59159.0,59158.0,0.0004]
[1725316259876,0.48120608,59159.0,59158.0,0.0004]
[1725316260284,1.48436008,59159.0,59150.0,0.0499]
[1725316260588,0.067628,59150.0,59149.0,0.0472]
[1725316260784,0.49097015,59150.0,59149.0,0.0472]
[1725316261283,0.43907931,59150.0,59149.0,0.0472]
[1725316261683,0.1533401,59150.0,59149.0,0.274829]
[1725316261881,0.10145131,59150.0,59149.0,0.274829]
[1725316262088,0.16257041,59150.0,59149.0,0.274829]
[1725316262286,0.06005782,59150.0,59149.0,0.114829]
[1725316262587,0.02740629,59150.0,59149.0,0.114829]
[1725316262981,0.06879978,59150.0,59149.0,0.114829]
[1725316263182,0.15207054,59154.0,59149.0,0.2072]
[1725316263379,0.17234341,59158.0,59150.0,0.067628]
[1725316263380,0.06005826,59153.0,59150.0,0.067628]
[1725316263687,0.15207054,59155.0,59151.0,0.067626]
[1725316263688,0.06005826,59152.0,59151.0,0.067626]
[1725316264490,0.02740648,59152.0,59151.0,0.067626]
[1725316264785,0.06005826,59152.0,59151.0,0.067626]
[1725316265194,0.16256842,59152.0,59151.0,0.428426]
[1725316265393,0.16256842,59152.0,59151.0,0.067626]
[1725316265589,0.06005826,59152.0,59151.0,0.067626]
[1725316265788,0.06005826,59152.0,59151.0,0.135252]
[1725316265988,0.06005826,59152.0,59151.0,0.13930855]
[1725316266382,0.03265178,59152.0,59151.0,0.13930855]
[1725316266698,0.03265049,59152.0,59151.0,0.07168255]
[1725316267193,0.06005548,59154.0,59151.0,0.07168255]
[1725316267400,0.06005501,59153.0,59151.0,0.00405655]
[1725316267696,0.06005501,59152.0,59151.0,0.067626]
[1725316268396,0.11826461,59154.0,59153.0,0.067624]
[1725316268593,0.11826461,59155.0,59153.0,0.068024]
[1725316268790,0.11826461,59155.0,59154.0,0.068023]
[1725316268995,0.17832002,59155.0,59154.0,0.067623]
[1725316269198,0.17831899,59155.0,59154.0,0.135246]
[1725316269384,0.15091208,59155.0,59154.0,0.135246]
[1725316269590,0.06005541,59155.0,59154.0,0.135246]
[1725316269903,0.11827543,59155.0,59154.0,0.135246]
[1725316270096,0.15092555,59155.0,59154.0,0.135246]
[1725316271184,0.11827543,59156.0,59155.0,0.135244]
[1725316271389,0.04346743,59158.0,59157.0,0.06762]
[1725316271585,0.06004831,59158.0,59157.0,0.56406]
[1725316271899,0.06004831,59158.0,59157.0,1.67118]
[1725316272103,0.06004479,59158.0,59157.0,0.49644]
[1725316272584,0.06004479,59158.0,59157.0,1.60356]
[1725316275503,0.06004479,59158.0,59157.0,1.00356]
[1725316276001,0.06004479,59158.0,59157.0,0.49644]
[1725316276986,0.00025352,59159.0,59158.0,0.135236]
[1725316277191,0.00025352,59159.0,59158.0,0.135636]
[1725316277388,0.03289962,59159.0,59158.0,0.135636]
[1725316277590,0.03289947,59159.0,59158.0,0.135636]
[1725316277792,0.00025352,59159.0,59158.0,0.135636]
[1725316277986,0.02765514,59159.0,59158.0,0.135636]
[1725316278192,0.03289947,59159.0,59158.0,0.135636]
[1725316278386,0.06030109,59159.0,59158.0,0.135636]
[1725316280301,0.06030109,59159.0,59158.0,0.068018]
[1725316281298,0.17972568,59159.0,59158.0,0.068018]
[1725316281497,0.22111376,59159.0,59158.0,0.068018]
[1725316281701,0.21237163,59159.0,59158.0,0.068018]
[1725316281898,0.22111376,59159.0,59158.0,0.068018]
[1725316282199,0.27299091,59159.0,59158.0,0.068018]
[1725316282395,0.15356632,59159.0,59158.0,0.068018]
[1725316282794,0.17950808,59159.0,59158.0,0.068018]
[1725316283106,0.17950808,59159.0,59158.0,0.228018]
[1725316283107,0.23138523,59159.0,59158.0,0.228018]
[1725316283301,0.15356632,59159.0,59158.0,0.228018]
[1725316284608,0.17949717,59159.0,59158.0,0.228018]
[1725316284912,0.30540859,59159.0,59158.0,0.228018]
[1725316286806,0.2261299,59159.0,59158.0,0.228018]
[1725316287004,0.25353212,59159.0,59158.0,0.228018]
[1725316287208,0.30540845,59159.0,59158.0,0.228018]
[1725316287507,0.15356618,59159.0,59158.0,0.068018]
[1725316289315,0.17840848,59159.0,59158.0,0.068018]
[1725316291414,0.10169003,59159.0,59158.0,0.068018]
[1725316291799,0.10169186,59159.0,59158.0,0.068018]
[1725316292611,0.23667021,59159.0,59158.0,0.068018]
[1725316293306,0.10169186,59159.0,59158.0,0.068018]
[1725316294510,0.16276998,59159.0,59158.0,0.068018]
[1725316295007,0.23680555,59159.0,59158.0,0.068018]
[1725316295319,0.10169186,59159.0,59158.0,0.068018]
[1725316296812,0.11567813,59159.0,59158.0,0.068018]
[1725316297015,0.10169294,59159.0,59158.0,0.068018]
[1725316302433,0.15357105,59159.0,59158.0,0.068018]
[1725316303923,0.22118805,59159.0,59158.0,0.068018]
[1725316306829,0.22119053,59159.0,59158.0,0.068018]
[1725316310715,0.31385522,59159.0,59158.0,0.068018]
[1725316311027,0.40712345,59159.0,59158.0,0.068018]
[1725316311325,0.3406688,59159.0,59158.0,0.068018]
[1725316311518,0.37331704,59159.0,59158.0,0.068018]
[1725316311917,0.37331677,59159.0,59158.0,0.068018]
[1725316313732,0.22119026,59159.0,59158.0,0.068018]
[1725316314328,0.10169453,59159.0,59158.0,0.068018]
[1725316314518,0.10169453,59159.0,59158.0,0.117218]
[1725316316921,0.10169358,59159.0,59158.0,0.117218]
[1725316319333,0.11218198,59159.0,59158.0,0.117218]
[1725316319536,0.15357093,59159.0,59158.0,0.117218]
[1725316321726,0.12091931,59159.0,59158.0,0.117218]
[1725316321921,0.15356593,59159.0,59158.0,0.117218]
[1725316326354,0.1628884,59159.0,59158.0,0.117218]
[1725316326644,0.23692238,59159.0,59158.0,0.117218]
[1725316326833,0.23692405,59159.0,59158.0,0.117218]
[1725316327034,0.10169135,59159.0,59158.0,0.117218]
[1725316330539,0.16288638,59159.0,59158.0,0.117218]
[1725316330739,0.20427442,59159.0,59158.0,0.117218]
[1725316330938,0.23692158,59159.0,59158.0,0.117218]
[1725316331833,0.10169223,59159.0,59158.0,0.117218]
[1725316333240,0.16288662,59159.0,59158.0,0.117218]
[1725316333441,0.15356978,59159.0,59158.0,0.117218]
[1725316335133,0.41263972,59159.0,59158.0,0.068018]
[1725316335447,0.41263972,59159.0,59158.0,0.0004]
[1725316335448,0.78198678,59159.0,59158.0,0.0004]
[1725316336752,0.78586308,59159.0,59158.0,0.0004]
[1725316337333,0.85348008,59159.0,59158.0,0.0004]
[1725316337539,0.135242,59156.0,59155.0,0.0004]
[1725316337836,0.57158477,59156.0,59155.0,0.0004]
[1725316338035,1.64670572,59156.0,59155.0,0.0004]
[1725316338635,0.067628,59150.0,59149.0,0.0039]
[1725316338938,0.067629,59149.0,59148.0,0.00025352]
[1725316339135,0.39025118,59149.0,59148.0,0.00025352]
[1725316339542,0.15371626,59149.0,59148.0,0.06788352]
[1725316339746,0.30567049,59149.0,59148.0,0.06788352]
[1725316340141,0.15371626,59149.0,59148.0,0.06788352]
[1725316340350,0.17975323,59149.0,59148.0,0.06788352]
[1725316340543,0.22114163,59149.0,59148.0,0.06788352]
[1725316340848,0.30566662,59149.0,59148.0,0.06788352]
[1725316341249,0.30564133,59149.0,59148.0,0.06788352]
[1725316341546,0.06045031,59149.0,59148.0,0.06788352]
[1725316341750,0.06046247,59149.0,59148.0,0.06788352]
[1725316343249,0.06046247,59149.0,59148.0,0.15788352]
[1725316343447,0.02780842,59149.0,59148.0,0.15788352]
[1725316345352,0.0004,59149.0,59148.0,0.15788352]
[1725316345752,0.02780842,59149.0,59148.0,0.15788352]
[1725316346747,0.02780584,59149.0,59148.0,0.15788352]
[1725316347750,0.10163531,59149.0,59148.0,0.15788352]
[1725316347948,0.02780584,59149.0,59148.0,0.15788352]
[1725316348142,0.02780584,59149.0,59148.0,0.06788352]
[1725316348455,0.06919956,59149.0,59148.0,0.06788352]
[1725316348954,0.0004,59149.0,59148.0,0.06788352]
[1725316349251,0.1018512,59149.0,59148.0,0.06788352]
[1725316349858,0.1018512,59149.0,59148.0,0.42868352]
[1725316351555,0.0831872,59149.0,59148.0,0.42868352]
[1725316351853,0.0004,59149.0,59148.0,0.42868352]
[1725316352249,0.02780623,59149.0,59148.0,0.42868352]
[1725316352450,0.06045768,59149.0,59148.0,0.42868352]
[1725316352655,0.10185116,59149.0,59148.0,0.42868352]
[1725316354751,0.10185116,59149.0,59148.0,1.53588352]
[1725316356062,0.06045768,59149.0,59148.0,1.53588352]
[1725316356650,0.06045779,59149.0,59148.0,1.53588352]
[1725316358863,0.06045676,59149.0,59148.0,1.53588352]
[1725316359361,0.02780628,59149.0,59148.0,1.53588352]
[1725316360562,0.02780628,59149.0,59148.0,0.93588352]
[1725316362764,0.02780628,59149.0,59148.0,0.42868352]
[1725316363069,0.02780628,59149.0,59148.0,0.93588352]
[1725316363271,0.02780628,59149.0,59148.0,0.42868352]
[1725316363463,0.03305097,59149.0,59148.0,0.42868352]
[1725316363665,0.06045725,59149.0,59148.0,0.42868352]
[1725316366467,0.03305241,59149.0,59148.0,0.42868352]
[1725316366668,0.06045945,59149.0,59148.0,0.42868352]
[1725316366868,0.0004,59149.0,59148.0,0.42868352]
[1725316367070,0.06045945,59149.0,59148.0,0.42868352]
[1725316369474,0.1786216,59149.0,59148.0,0.42868352]
[1725316370369,0.06045945,59149.0,59148.0,0.42868352]
[1725316370974,0.06045945,59149.0,59148.0,0.06788352]
[1725316370975,0.06920174,59149.0,59148.0,0.06788352]
[1725316371189,0.10185415,59149.0,59148.0,0.06788352]
[1725316371474,0.10185534,59149.0,59148.0,0.06788352]
[1725316371672,0.07444937,59149.0,59148.0,0.06788352]
[1725316371875,0.06046128,59149.0,59148.0,0.06788352]
[1725316372069,0.10185724,59149.0,59148.0,0.06788352]
[1725316372675,0.16304597,59149.0,59148.0,0.06788352]
[1725316372870,0.23709534,59149.0,59148.0,0.06788352]
[1725316374577,0.10185724,59149.0,59148.0,0.42868352]
[1725316376670,0.10185505,59149.0,59148.0,0.42868352]
[1725316378674,0.06045998,59149.0,59148.0,0.42868352]
[1725316381687,0.06045991,59149.0,59148.0,0.06788352]
[1725316386788,0.17878148,59149.0,59148.0,0.06788352]
[1725316386991,0.06046107,59149.0,59148.0,0.06788352]
[1725316387381,0.10185691,59149.0,59148.0,0.06788352]
[1725316387582,0.06046107,59149.0,59148.0,0.42868352]
[1725316390195,0.06046107,59149.0,59148.0,0.06788352]
[1725316390389,0.17878577,59149.0,59148.0,0.06788352]
[1725316390584,0.06046107,59149.0,59148.0,0.06788352]
[1725316391488,0.24641477,59149.0,59148.0,0.06788352]
[1725316391995,0.12809007,59149.0,59148.0,0.06788352]
[1725316392193,0.24644166,59149.0,59148.0,0.06788352]
[1725316392395,0.12809007,59149.0,59148.0,0.06788352]
[1725316392896,0.16948643,59149.0,59148.0,0.06788352]
[1725316393391,0.16948629,59149.0,59148.0,0.06788352]
[1725316396689,0.10185729,59149.0,59148.0,0.58631352]
[1725316396986,0.10185729,59149.0,59148.0,0.51868352]
[1725316399095,0.0039,59157.0,59149.0,0.5072]
[1725316399393,0.00025352,59159.0,59158.0,0.067618]
[1725316399589,0.03289608,59159.0,59158.0,0.428818]
[1725316399797,0.03289608,59159.0,59158.0,1.535538]
[1725316400184,0.00025352,59159.0,59158.0,1.535538]
[1725316400589,0.00025352,59159.0,59158.0,1.603156]
[1725316400790,0.12215393,59166.0,59165.0,0.06761]
[1725316401003,0.02522852,59178.0,59165.0,1.02585]
[1725316401190,0.0039,59176.0,59175.0,0.067599]
[1725316401387,0.0039,59183.0,59177.0,0.09]
[1725316401587,0.03263636,59182.0,59177.0,0.09]
[1725316401793,0.03455352,59185.0,59177.0,0.09]
[1725316401991,0.10114241,59178.0,59177.0,0.157597]